fUST/lending_fUST_20241016
["ID","MTS","AMOUNT","RATE_DAILY","PERIOD"]
[340337583,1729063175084,-500.0,0.00041096,31]
[340337584,1729063175118,-500.0,0.00041096,31]
[340337585,1729063175152,-500.0,0.00041096,31]
[340337586,1729063175187,-500.0,0.00041096,31]
[340337587,1729063175222,-500.0,0.00041096,31]
[340337588,1729063175257,-972.1389836,0.00041096,31]
[340337589,1729063175292,-972.1389836,0.00041096,31]
[340337590,1729063175328,-972.1389836,0.00041096,31]
[340337591,1729063175364,-972.1389836,0.00041096,31]
[340337592,1729063175408,-972.1389836,0.00041096,31]
[340337593,1729063175448,-972.1389836,0.00041096,31]
[340337594,1729063175485,-972.1389836,0.00041096,31]
[340337595,1729063175527,-972.1389836,0.00041096,31]
[340337596,1729063175572,-972.1389836,0.00041096,31]
[340337597,1729063175609,-972.1389836,0.00041096,31]
[340337598,1729063175649,-1161.16600819,0.00041096,31]
[340337599,1729063175684,-972.1389836,0.00041096,31]
[340337600,1729063175719,-972.1389836,0.00041096,31]
[340337601,1729063175755,-972.1389836,0.00041096,31]
[340337602,1729063175792,-972.1389836,0.00041096,31]
[340337603,1729063175827,-972.1389836,0.00041096,31]
[340337604,1729063175860,-972.1389836,0.00041096,31]
[340337605,1729063175896,-972.1389836,0.00041096,31]
[340337606,1729063175933,-972.1389836,0.00041096,31]
[340337607,1729063175970,-972.1389836,0.00041096,31]
[340337608,1729063176005,-1161.16600819,0.00041096,31]
[340337609,1729063176042,-972.1389836,0.00041096,31]
[340337610,1729063176077,-972.1389836,0.00041096,31]
[340337611,1729063176113,-972.1389836,0.00041096,31]
[340337612,1729063176148,-972.1389836,0.00041096,31]
[340337613,1729063176183,-1161.16600819,0.00041096,31]
[340337614,1729063176217,-972.1389836,0.00041096,31]
[340337615,1729063176252,-972.1389836,0.00041096,31]
[340337616,1729063176288,-972.1389836,0.00041096,31]
[340337617,1729063176324,-972.1389836,0.00041096,31]
[340337618,1729063176359,-972.1389836,0.00041096,31]
[340337619,1729063176393,-1161.16600819,0.00041096,31]
[340337620,1729063176427,-937.41973418,0.00041096,31]
[340337621,1729063176463,-937.41973418,0.00041096,31]
[340337622,1729063176498,-937.41973418,0.00041096,31]
[340337623,1729063176536,-937.41973418,0.00041096,31]
[340337624,1729063176571,-937.41973418,0.00041096,31]
[340337625,1729063176607,-937.41973418,0.00041096,31]
[340337626,1729063176644,-937.41973418,0.00041096,31]
[340337627,1729063176679,-937.41973418,0.00041096,31]
[340337628,1729063176715,-937.41973418,0.00041096,31]
[340337629,1729063176750,-937.41973418,0.00041096,31]
[340337630,1729063176785,-937.41973418,0.00041096,31]
[340337631,1729063176821,-937.41973418,0.00041096,31]
[340337632,1729063176860,-937.41973418,0.00041096,31]
[340337633,1729063176897,-1458.20847539,0.00041096,31]
[340337634,1729063176935,-937.41973418,0.00041096,31]
[340337635,1729063176970,-50000.0,0.000412,30]
[340337636,1729063177172,-300.0,0.000412,120]
[340337637,1729063177210,-8987.85859835,0.000413,120]
[340337638,1729063177246,-9458.34119191,0.0004148,63]
[340337639,1729063177281,-3112.41,0.0004148,30]
[340337640,1729063177321,-300.0,0.000416,120]
[340337641,1729063177357,-777970.16428314,0.000418,120]
[340337642,1729063185955,-500.0,0.00034068,60]
[340337643,1729063186000,-152.06,0.000343,31]
[340337644,1729063186040,-152.06,0.000343,31]
[340337645,1729063186080,-152.06,0.000343,31]
[340337646,1729063186119,-152.06,0.000343,31]
[340337647,1729063186157,-152.06,0.000343,31]
[340337648,1729063186198,-152.06,0.000343,31]
[340337649,1729063186236,-152.06,0.000343,31]
[340337650,1729063186273,-152.06,0.000343,31]
[340337651,1729063186448,-152.06,0.000343,31]
[340337652,1729063186485,-500.0,0.00034616,60]
[340337653,1729063186526,-153.0,0.00035453,90]
[340337654,1729063186564,-153.0,0.00035453,90]
[340337655,1729063186603,-153.0,0.00035453,90]
[340337656,1729063186641,-153.0,0.00035453,90]
[340337657,1729063186680,-153.0,0.00035453,90]
[340337658,1729063186719,-153.0,0.00035453,90]
[340337659,1729063186757,-500.0,0.00035712,60]
[340337660,1729063186795,-500.0,0.00036808,60]
[340337661,1729063186836,-152.06,0.000383,31]
[340337662,1729063186876,-152.06,0.000383,31]
[340337663,1729063186915,-152.06,0.000383,31]
[340337664,1729063186958,-152.06,0.000383,31]
[340337665,1729063186998,-152.06,0.000383,31]
[340337666,1729063187036,-152.06,0.000383,31]
[340337667,1729063187080,-152.06,0.000383,31]
[340337668,1729063187117,-152.06,0.000383,31]
[340337669,1729063187154,-152.06,0.000383,31]
[340337670,1729063187190,-152.06,0.000383,31]
[340337671,1729063187229,-152.06,0.000383,31]
[340337672,1729063187265,-152.06,0.000383,31]
[340337673,1729063187305,-152.06,0.000383,31]
[340337674,1729063187341,-152.06,0.000383,31]
[340337675,1729063187377,-152.06,0.000383,31]
[340337676,1729063187414,-152.06,0.000383,31]
[340337677,1729063187460,-297891.68900952,0.000418,120]
[340337678,1729063187496,-150.0,0.000418,30]
[340337679,1729063187534,-5000.0,0.00042,42]
[340337680,1729063187574,-80000.0,0.00042,30]
[340337681,1729063187607,-200.0,0.00042,120]
[340337682,1729063187644,-300.0,0.00042,120]
[340337683,1729063187680,-152.06,0.000423,33]
[340337684,1729063187715,-152.06,0.000423,33]
[340337685,1729063187750,-152.06,0.000423,33]
[340337686,1729063187787,-152.06,0.000423,33]
[340337687,1729063187826,-152.06,0.000423,33]
[340337688,1729063187862,-152.06,0.000423,33]
[340337689,1729063187899,-152.06,0.000423,33]
[340337690,1729063187937,-152.06,0.000423,33]
[340337691,1729063187978,-152.06,0.000423,33]
[340337692,1729063188018,-152.06,0.000423,33]
[340337693,1729063188058,-152.06,0.000423,33]
[340337694,1729063188097,-152.06,0.000423,33]
[340337695,1729063188136,-152.06,0.000423,33]
[340337696,1729063188177,-152.06,0.000423,33]
[340337697,1729063188215,-152.06,0.000423,33]
[340337698,1729063188255,-152.06,0.000423,33]
[340337699,1729063188293,-151.0,0.00042329,120]
[340337700,1729063188330,-4398.42,0.00042342,30]
[340337701,1729063188375,-150.0,0.00042453,120]
[340337702,1729063188414,-300.0,0.000425,120]
[340337703,1729063188451,-193.78378916,0.0004274,30]
[340337704,1729063188486,-1460.38262191,0.00042754,83]
[340337705,1729063188524,-157.8115945,0.00042898,120]
[340337706,1729063188565,-370.00446521,0.00043,120]
[340337707,1729063188603,-331.90292983,0.00043,120]
[340337708,1729063188639,-638.06458888,0.00043,120]
[340337709,1729063188678,-1000.0,0.00043,120]
[340337710,1729063188719,-357.43409782,0.00043,120]
[340337711,1729063188755,-324.61320626,0.00043,120]
[340337712,1729063188792,-389.97032016,0.00043,120]
[340337713,1729063188827,-50000.0,0.00043,30]
[340337714,1729063188865,-300.0,0.00043,120]
[340337715,1729063188903,-378.53052239,0.00043,120]
[340337716,1729063188941,-151.0,0.00043014,120]
[340337717,1729063188979,-150.0,0.0004314,120]
[340337718,1729063189016,-300.0,0.000435,120]
[340337719,1729063189054,-151.0,0.00043562,120]
[340337720,1729063189092,-820.4620885,0.000436,60]
[340337721,1729063189130,-156.2,0.00043624,31]
[340337722,1729063189306,-278.673,0.00043774,68]
[340337723,1729063189343,-4057.62911537,0.00043825,75]
[340337724,1729063189382,-508.04603458,0.00043835,60]
[340337725,1729063189426,-600.0,0.00043835,30]
[340337726,1729063189463,-520.628778,0.00043835,30]
[340337727,1729063189499,-500.0,0.00043835,120]
[340337728,1729063189535,-500.0,0.00043835,120]
[340337729,1729063189570,-500.0,0.00043835,120]
[340337730,1729063189606,-500.0,0.00043835,120]
[340337731,1729063189640,-500.0,0.00043835,120]
[340337732,1729063189675,-500.0,0.00043835,120]
[340337733,1729063189712,-500.0,0.00043835,120]
[340337734,1729063189747,-612.08995124,0.00043835,120]
[340337735,1729063189785,-2000.0,0.00043835,120]
[340337736,1729063189823,-2000.0,0.00043835,120]
[340337737,1729063189861,-2000.0,0.00043835,120]
[340337738,1729063189900,-2000.0,0.00043835,120]
[340337739,1729063189938,-2000.0,0.00043835,120]
[340337740,1729063189976,-2000.0,0.00043835,120]
[340337741,1729063190018,-2000.0,0.00043835,120]
[340337742,1729063190055,-2000.0,0.00043835,120]
[340337743,1729063190090,-2000.0,0.00043835,120]
[340337744,1729063190126,-2000.0,0.00043835,120]
[340337745,1729063190162,-2000.0,0.00043835,120]
[340337746,1729063190201,-2000.0,0.00043835,120]
[340337747,1729063190237,-2000.0,0.00043835,120]
[340337748,1729063190273,-2000.0,0.00043835,120]
[340337749,1729063190311,-1801.57173049,0.00043835,120]
[340337750,1729063190348,-1436.120664,0.00043836,120]
[340337751,1729063190384,-9458.34119191,0.0004398,63]
[340337752,1729063190422,-5000.0,0.00044,44]
[340337753,1729063190459,-30000.0,0.00044,120]
[340337754,1729063190495,-200.0,0.00044,120]
[340337755,1729063190529,-300.0,0.00044,120]
[340337756,1729063190566,-559.0,0.00044,60]
[340337757,1729063190602,-150.0,0.00044198,120]
[340337758,1729063190638,-84055.81046777,0.000442,120]
[340337759,1729063190675,-84055.81046776,0.000442,120]
[340337760,1729063190710,-84055.81046776,0.000442,120]
[340337761,1729063190745,-84055.81046776,0.000442,120]
[340337762,1729063190778,-84055.81046776,0.000442,120]
[340337763,1729063190813,-90267.97320325,0.000445,120]
[340337764,1729063190848,-300.0,0.000445,120]
[340337765,1729063190883,-4042.0,0.000447,30]
[340337766,1729063190919,-193.7884146,0.000447,120]
[340337767,1729063190956,-151.0,0.00044795,120]
[340337768,1729063190993,-2488.60291469,0.00044885,60]
[340337769,1729063191029,-33056.68084052,0.000449,120]
[340337770,1729063191064,-1102.56772364,0.00045,120]
[340337771,1729063191100,-259.45765591,0.00045,120]
[340337772,1729063191135,-50215.0,0.00045,30]
[340337773,1729063191169,-300.0,0.00045,120]
[340337774,1729063191203,-15027.0,0.00045,120]
[340337775,1729063191238,-30000.0,0.00045,60]
[340337776,1729063191276,-1000.0,0.00045,120]
[340337777,1729063191311,-101380.78986222,0.00045,120]
[340337778,1729063191350,-10017.89389466,0.00045,120]
[340337779,1729063191389,-29243.11926887,0.00045,30]
[340337780,1729063191425,-205.67245161,0.00045,120]
[340337781,1729063191462,-200516.05644629,0.00045,30]
[340337782,1729063191500,-5000.0,0.00045,60]
[340337783,1729063191538,-50000.0,0.00045,30]
[340337784,1729063191578,-300.0,0.00045,120]
[340337785,1729063191614,-905.98022751,0.00045,120]
[340337786,1729063191651,-20000.0,0.00045,40]
[340337787,1729063191689,-440.28984025,0.00045,120]
[340337788,1729063191727,-1461.30370988,0.00045,120]
[340337789,1729063191765,-300.0,0.000455,120]
[340337790,1729063191805,-89999.999999,0.0004555,120]
[340337791,1729063191841,-151.0,0.00045616,120]
[340337792,1729063192016,-427.114479,0.00045616,30]
[340337793,1729063192055,-431.0889092,0.00045616,30]
[340337794,1729063192092,-159.54034274,0.0004567,30]
[340337795,1729063192129,-1000.0,0.00045899,120]
[340337796,1729063192169,-5000.0,0.00046,46]
[340337797,1729063192206,-10185.0,0.00046,30]
[340337798,1729063192243,-281885.19777762,0.00046,60]
[340337799,1729063210179,-155.0,0.0003545,90]
[340337800,1729063210219,-155.0,0.0003545,90]
[340337801,1729063210256,-155.0,0.0003545,90]
[340337802,1729063210293,-155.0,0.0003545,90]
[340337803,1729063210330,-155.0,0.0003545,90]
[340337804,1729063210367,-155.0,0.0003545,90]
[340337805,1729063210406,-155.0,0.0003545,90]
[340337806,1729063210446,-155.0,0.0003545,90]
[340337807,1729063210484,-155.0,0.0003545,90]
[340337808,1729063210522,-155.0,0.0003545,90]
[340337809,1729063210564,-155.0,0.0003545,90]
[340337810,1729063210603,-155.0,0.0003545,90]
[340337811,1729063210641,-155.0,0.0003545,90]
[340337812,1729063210683,-155.0,0.0003545,90]
[340337813,1729063210720,-155.0,0.0003545,90]
[340337814,1729063210758,-155.0,0.0003545,90]
[340337815,1729063210796,-155.0,0.0003545,90]
[340337816,1729063210849,-157.8116045,0.00042898,120]
[340337817,1729063210887,-1997207.1883955,0.00046,60]
[340337818,1729063214283,-642610.63852799,0.00046,60]
[340337819,1729063214321,-232763.48392319,0.00046,60]
[340337820,1729063214359,-6646.58246567,0.00046,120]
[340337821,1729063214396,-200.0,0.00046,120]
[340337822,1729063214434,-300.0,0.00046,120]
[340337823,1729063214474,-150.0,0.00046,30]
[340337824,1729063214637,-150.0,0.00046,30]
[340337825,1729063214678,-500.0,0.00046,30]
[340337826,1729063214717,-151.0,0.00046027,120]
[340337827,1729063214756,-156.2,0.00046206,31]
[340337828,1729063214798,-152.06,0.000463,39]
[340337829,1729063214842,-152.06,0.000463,39]
[340337830,1729063214883,-152.06,0.000463,39]
[340337831,1729063214927,-152.06,0.000463,39]
[340337832,1729063214970,-152.06,0.000463,39]
[340337833,1729063215012,-152.06,0.000463,39]
[340337834,1729063215053,-152.06,0.000463,39]
[340337835,1729063215095,-152.06,0.000463,39]
[340337836,1729063215136,-152.06,0.000463,39]
[340337837,1729063215175,-152.06,0.000463,39]
[340337838,1729063215214,-152.06,0.000463,39]
[340337839,1729063215253,-152.06,0.000463,39]
[340337840,1729063215294,-152.06,0.000463,39]
[340337841,1729063215332,-152.06,0.000463,39]
[340337842,1729063215371,-152.06,0.000463,39]
[340337843,1729063215410,-210.2404033,0.00046318,30]
[340337844,1729063215449,-9458.34119191,0.0004648,63]
[340337845,1729063215490,-814.36084066,0.00046547,120]
[340337846,1729063215532,-150.0,0.00046574,120]
[340337847,1729063215578,-171.629968,0.00046575,120]
[340337848,1729063215618,-171.629968,0.00046575,120]
[340337849,1729063215657,-171.629968,0.00046575,120]
[340337850,1729063215695,-171.629968,0.00046575,120]
[340337851,1729063215734,-171.629968,0.00046575,120]
[340337852,1729063215771,-171.629968,0.00046575,120]
[340337853,1729063215808,-171.629968,0.00046575,120]
[340337854,1729063215846,-171.629968,0.00046575,120]
[340337855,1729063215883,-171.629968,0.00046575,120]
[340337856,1729063215920,-171.629968,0.00046575,120]
[340337857,1729063215973,-171.629968,0.00046575,120]
[340337858,1729063216011,-171.629968,0.00046575,120]
[340337859,1729063216051,-171.629968,0.00046575,120]
[340337860,1729063216099,-171.629968,0.00046575,120]
[340337861,1729063216138,-171.629968,0.00046575,120]
[340337862,1729063216179,-171.629968,0.00046575,120]
[340337863,1729063216216,-171.629968,0.00046575,120]
[340337864,1729063216253,-171.629968,0.00046575,120]
[340337865,1729063216289,-171.629968,0.00046575,120]
[340337866,1729063216326,-171.629968,0.00046575,120]
[340337867,1729063216363,-50000.0,0.000467,30]
[340337868,1729063216400,-300.0,0.000467,30]
[340337869,1729063216437,-150.0,0.00046709,120]
[340337870,1729063216475,-1008692.00353787,0.000468,120]
[340337871,1729063216511,-40883.64974941,0.000469,30]
[340337872,1729063221269,-427.6259542,0.00045616,30]
[340337873,1729063221305,-3200.0,0.00046,30]
[340337874,1729063221344,-9116.35025059,0.000469,30]
[340337875,1729063221382,-3601.18658249,0.000469,60]
[340337876,1729063221425,-294.217,0.000469,30]
[340337877,1729063221464,-1000.0,0.00047,120]
[340337878,1729063221502,-39327.93336277,0.00047,120]
[340337879,1729063221539,-4436.94109082,0.00047,30]
[340337880,1729063221578,-10000.0,0.00047,30]
[340337881,1729063221616,-10000.0,0.00047,30]
[340337882,1729063221656,-10000.0,0.00047,30]
[340337883,1729063221695,-13757.32109067,0.00047,30]
[340337884,1729063221733,-1363.49856396,0.00047,30]
[340337885,1729063221772,-151.0,0.0004726,120]
[340337886,1729063221810,-570.637637,0.00047397,120]
[340337887,1729063221848,-27514.67018212,0.000475,120]
[340337888,1729063221886,-364.45454898,0.00047562,120]
[340337889,1729063221926,-300.0,0.000477,32]
[340337890,1729063221966,-1000.0,0.000477,120]
[340337891,1729063222005,-1000.0,0.0004785,120]
[340337892,1729063222047,-605.01287692,0.00047945,120]
[340337893,1729063222085,-1389.37938887,0.00047948,50]
[340337894,1729063222125,-5000.0,0.00048,48]
[340337895,1729063222162,-30000.0,0.00048,120]
[340337896,1729063222199,-10000.0,0.00048,30]
[340337897,1729063222236,-2200.0,0.00048,30]
[340337898,1729063222272,-20000.0,0.00048,30]
[340337899,1729063222309,-100000.0,0.00048,30]
[340337900,1729063222347,-150.0,0.00048,30]
[340337901,1729063222384,-1000.34099768,0.00048,30]
[340337902,1729063222419,-200.0,0.00048,120]
[340337903,1729063222456,-570.00770709,0.00048,120]
[340337904,1729063222493,-16229.0,0.00048,30]
[340337905,1729063222531,-268.109247,0.00048,30]
[340337906,1729063222571,-4435.0,0.00048,30]
[340337907,1729063222608,-10000.0,0.00048,30]
[340337908,1729063222647,-10000.0,0.00048,30]
[340337909,1729063222684,-10000.0,0.00048,30]
[340337910,1729063222723,-13756.0,0.00048,30]
[340337911,1729063222760,-1363.0,0.00048,30]
[340337912,1729063222798,-151.0,0.00048219,120]
[340337913,1729063222837,-151.0,0.00048493,120]
[340337914,1729063222875,-5084.82088953,0.000485,120]
[340337915,1729063222914,-59339.74851673,0.000485,120]
[340337916,1729063222955,-20000.0,0.000485,30]
[340337917,1729063222993,-11100.0,0.000485,90]
[340337918,1729063223031,-1000.0,0.00048599,120]
[340337919,1729063223068,-300.0,0.000487,34]
[340337920,1729063223107,-592.0,0.000487,120]
[340337921,1729063223144,-500.0,0.00048767,120]
[340337922,1729063223180,-500.0,0.00048767,120]
[340337923,1729063223215,-500.0,0.00048767,120]
[340337924,1729063223251,-500.0,0.00048767,120]
[340337925,1729063223397,-500.0,0.00048767,120]
[340337926,1729063223438,-500.0,0.00048767,120]
[340337927,1729063223477,-500.0,0.00048767,120]
[340337928,1729063223516,-500.0,0.00048767,120]
[340337929,1729063223556,-500.0,0.00048767,120]
[340337930,1729063223596,-500.0,0.00048767,120]
[340337931,1729063223637,-500.0,0.00048767,120]
[340337932,1729063223677,-500.0,0.00048767,120]
[340337933,1729063223716,-500.0,0.00048767,120]
[340337934,1729063223755,-500.0,0.00048767,120]
[340337935,1729063223794,-500.0,0.00048767,120]
[340337936,1729063223831,-500.0,0.00048767,120]
[340337937,1729063223868,-500.0,0.00048767,120]
[340337938,1729063223905,-500.0,0.00048767,120]
[340337939,1729063223946,-290.98247151,0.00048767,120]
[340337940,1729063223985,-156.2,0.00048789,60]
[340337941,1729063224024,-499.499,0.0004879,90]
[340337942,1729063224064,-32533.09217602,0.000488,120]
[340337943,1729063224103,-3190.0,0.00048888,120]
[340337944,1729063224141,-1056.52,0.00048888,120]
[340337945,1729063224180,-158.57644715,0.0004895,120]
[340337946,1729063224219,-9458.34119191,0.0004898,63]
[340337947,1729063224258,-1000.0,0.00049,30]
[340337948,1729063224295,-14999.0,0.00049,30]
[340337949,1729063224333,-1000.0,0.00049,120]
[340337950,1729063224369,-1000.0,0.00049,120]
[340337951,1729063224407,-1563.25687479,0.00049,120]
[340337952,1729063224444,-104900.70412373,0.00049,120]
[340337953,1729063224482,-1250.0,0.00049315,120]
[340337954,1729063224521,-1250.0,0.00049315,120]
[340337955,1729063224562,-1250.0,0.00049315,120]
[340337956,1729063224601,-1250.0,0.00049315,120]
[340337957,1729063224642,-331.86357475,0.00049315,120]
[340337958,1729063224682,-286.8399178,0.00049315,120]
[340337959,1729063224722,-1250.0,0.00049315,120]
[340337960,1729063224762,-916.38,0.00049315,30]
[340337961,1729063224802,-893.05,0.00049315,120]
[340337962,1729063224841,-10000.0,0.00049315,60]
[340337963,1729063224881,-1436.120664,0.00049315,120]
[340337964,1729063224921,-893.05,0.00049589,120]
[340337965,1729063224960,-151.0,0.00049726,120]
[340337966,1729063225000,-197.0975976,0.000498,120]
[340337967,1729063225040,-893.05,0.00049863,120]
[340337968,1729063225081,-100000.0,0.000499,30]
[340337969,1729063225119,-1000.0,0.00049999,120]
[340337970,1729063225160,-5000.0,0.0005,50]
[340337971,1729063225197,-403.0,0.0005,120]
[340337972,1729063225235,-150.0,0.0005,120]
[340337973,1729063225273,-6418.63475391,0.0005,30]
[340337974,1729063225312,-1190.3171108,0.0005,90]
[340337975,1729063225355,-1000.0,0.0005,120]
[340337976,1729063225394,-1000.0,0.0005,120]
[340337977,1729063225435,-130315.05395339,0.0005,120]
[340337978,1729063225474,-384.90158227,0.0005,120]
[340337979,1729063225514,-154.47955319,0.0005,120]
[340337980,1729063225667,-493.84847953,0.0005,120]
[340337981,1729063225708,-300.0,0.0005,120]
[340337982,1729063225748,-311.94949608,0.0005,120]
[340337983,1729063225788,-250.0,0.0005,120]
[340337984,1729063225829,-7000.0,0.0005,120]
[340337985,1729063225869,-792.27870172,0.0005,120]
[340337986,1729063225910,-1000.0,0.0005,120]
[340337987,1729063225951,-17000.0,0.0005,120]
[340337988,1729063225991,-10010.46067877,0.0005,30]
[340337989,1729063226032,-1000.0,0.0005,120]
[340337990,1729063226072,-4993.64503208,0.0005,120]
[340337991,1729063226115,-1000.49385432,0.0005,120]
[340337992,1729063226154,-2292.14131493,0.0005,30]
[340337993,1729063226194,-1121.03557783,0.0005,120]
[340337994,1729063226232,-11082.0,0.0005,120]
[340337995,1729063226270,-50000.0,0.0005,30]
[340337996,1729063226308,-233.44355778,0.0005,30]
[340337997,1729063226345,-161.82705075,0.0005,120]
[340337998,1729063226382,-69217.7060209,0.0005,120]
[340337999,1729063226422,-255.35,0.0005,30]
[340338000,1729063226460,-916.38,0.0005,40]
[340338001,1729063226498,-250.0,0.0005,30]
[340338002,1729063226535,-25000.0,0.00050001,120]
[340338003,1729063226571,-893.05,0.00050136,120]
[340338004,1729063226612,-893.05,0.0005041,120]
[340338005,1729063226652,-2500.0,0.00050684,120]
[340338006,1729063226691,-2500.0,0.00050684,120]
[340338007,1729063226732,-2500.0,0.00050684,120]
[340338008,1729063226774,-2500.0,0.00050684,120]
[340338009,1729063226813,-916.38,0.00050684,50]
[340338010,1729063226854,-893.05,0.00050684,120]
[340338011,1729063226893,-151.0,0.00050822,120]
[340338012,1729063226933,-893.05,0.00050958,120]
[340338013,1729063226973,-151.0,0.00050959,120]
[340338014,1729063227011,-1000.0,0.00051,30]
[340338015,1729063227050,-150.0,0.00051,90]
[340338016,1729063227088,-1000.0,0.00051,120]
[340338017,1729063227129,-3000.0,0.00051,85]
[340338018,1729063227170,-3000.0,0.0005101,85]
[340338019,1729063227208,-3000.0,0.0005102,85]
[340338020,1729063227247,-3000.0,0.0005103,85]
[340338021,1729063227285,-3000.0,0.0005104,85]
[340338022,1729063227324,-3000.0,0.0005105,85]
[340338023,1729063227364,-3000.0,0.0005106,85]
[340338024,1729063227405,-3000.0,0.0005107,85]
[340338025,1729063227443,-5399.044884,0.0005108,85]
[340338026,1729063227480,-893.05,0.00051232,120]
[340338027,1729063227519,-916.38,0.00051369,60]
[340338028,1729063227555,-824787.11847107,0.0005144,30]
[340338029,1729063235525,24900.0,0.00019601,2]
[340338035,1729063513466,164.594882,0.00019747,2]
[340338036,1729063513680,164.594882,0.00019953,2]
[340338040,1729063575495,161.0,0.00027,120]
[340338041,1729063589076,218.450856,0.00019569,2]
[340338042,1729063622895,150.5,0.00020653,120]
[340338043,1729063623333,150.5,0.00020643,120]
[340338044,1729063623804,153.76,0.00020633,120]
[340338047,1729063649361,232.0,0.000201,120]
[340338048,1729063649796,232.0,0.0002219,120]
[340338049,1729063650358,232.0,0.0002428,120]
[340338050,1729063650773,232.0,0.0002637,120]
[340338051,1729063654093,232.0,0.0001818,7]
[340338052,1729063654528,232.0,0.0001919,5]
[340338054,1729063688029,4418.0,0.000167,2]
[340338055,1729063695239,213.79688387,0.000123,2]
[340338056,1729063696824,5537.79531271,0.0002,2]
[340338057,1729063697204,10128.54543364,0.000125,2]
[340338058,1729063706815,2007.62895706,0.000176,2]
[340338059,1729063708058,824.30143065,0.00012,7]
[340338060,1729063708794,13177.89419428,0.000134,2]
[340338061,1729063709564,266.61197117,0.00014114,2]
[340338062,1729063711701,512.87242024,0.0002,2]
[340338064,1729063716394,47997.23524953,0.00021,60]
[340338065,1729063718009,7961.87984301,0.0002,2]
[340338066,1729063718037,336.70228601,0.0001,7]
[340338067,1729063718700,150.0,2.75e-05,120]
[340338068,1729063719645,214.0,0.000195,10]
[340338069,1729063719804,29663.60430883,0.00014,2]
[340338070,1729063719983,325.93543062,0.00025,120]
[340338071,1729063720144,621.63508896,0.00025,120]
[340338072,1729063720178,17492.73848636,0.0001,2]
[340338073,1729063720682,125199.31451392,0.0001999,2]
[340338074,1729063720706,7961.87984301,0.0001999,2]
[340338075,1729063721579,819.61967244,0.000125,2]
[340338076,1729063721612,161.84345819,0.00027,120]
[340338077,1729063723992,150.0,0.0002102,62]
[340338078,1729063724026,276.31807694,0.00025,120]
[340338079,1729063724104,-214.0,0.00018,10]
[340338080,1729063725222,-4337.98030563,0.00015,2]
[340338081,1729063725245,-4184.13985136,0.00018,10]
[340338082,1729063726828,-4047.07329191,0.00018,10]
[340338083,1729063726851,-4398.13985136,0.00018,10]
[340338084,1729063727840,-8522.12015699,0.00018,10]
[340338085,1729063730453,-2246.7830922,0.00018,10]
[340338102,1729063803153,200.0,0.00027,60]
[340338103,1729063805999,297.88,0.00027,60]
[340338128,1729063832202,-204.2017443,0.00018274,2]
[340338129,1729063832212,-300.0,0.00019989,2]
[340338130,1729063832222,-5.91366184,0.0001999,2]
[340338137,1729063832357,-248.06921291,0.0001999,2]
[340338140,1729063832373,-1268.55797548,0.0001999,2]
[340338142,1729063832383,-5162.89345474,0.0001999,2]
[340338144,1729063832400,-931.38397546,0.0001999,2]